[Event "Titled Tuesday Blitz August 1 Early 2023"]
[White "Sturt, Raven"]
[Black "Fantastic_Power"]
[WhiteFideId "2007304"]
[WhiteElo "2602"]
[BlackElo "2748"]
[Result "0-1"]
[Round "6"]
[TimeControl "180+1"]
[Date "2023.08.01"]
[WhiteClock "0:00:00"]
[BlackClock "0:00:29"]
[Board "48"]

1. d4 {[%clk 0:03:00]}  Nf6 {[%clk 0:02:59]} 2. c4 {[%clk 0:03:01]}  Nc6 {[%clk 0:02:59]} 3. Nf3 {[%clk 0:03:02]}  e6 {[%clk 0:02:59]} 4. g3 {[%clk 0:03:02]}  Bb4+ {[%clk 0:02:58]} 5. Bd2 {[%clk 0:03:02]}  Bxd2+ {[%clk 0:02:58]} 6. Qxd2 {[%clk 0:03:03]}  O-O {[%clk 0:02:58]} 7. Nc3 {[%clk 0:03:03]}  d6 {[%clk 0:02:59]} 8. Bg2 {[%clk 0:03:03]}  Qe7 {[%clk 0:02:59]} 9. O-O {[%clk 0:02:59]}  e5 {[%clk 0:02:59]} 10. Rab1 {[%clk 0:02:31]}  Bf5 {[%clk 0:02:55]} 11. Rbe1 {[%clk 0:02:25]}  Ne4 {[%clk 0:02:50]} 12. Nxe4 {[%clk 0:02:23]}  Bxe4 {[%clk 0:02:50]} 13. d5 {[%clk 0:02:17]}  Nb8 {[%clk 0:02:49]} 14. Nh4 {[%clk 0:02:13]}  Bxg2 {[%clk 0:02:45]} 15. Nxg2 {[%clk 0:02:14]}  Nd7 {[%clk 0:02:42]} 16. e4 {[%clk 0:02:12]}  a5 {[%clk 0:02:40]} 17. f4 {[%clk 0:02:11]}  Nc5 {[%clk 0:02:23]} 18. f5 {[%clk 0:02:02]}  f6 {[%clk 0:02:18]} 19. g4 {[%clk 0:02:01]}  b5 {[%clk 0:02:13]} 20. cxb5 {[%clk 0:01:56]}  Rfb8 {[%clk 0:02:13]} 21. Qe2 {[%clk 0:01:53]}  Rb6 {[%clk 0:02:06]} 22. Ne3 {[%clk 0:01:45]}  Rab8 {[%clk 0:02:05]} 23. g5 {[%clk 0:01:40]}  Rxb5 {[%clk 0:01:53]} 24. Qh5 {[%clk 0:01:37]}  Nd3 {[%clk 0:01:45]} 25. Re2 {[%clk 0:01:02]}  Nf4 {[%clk 0:01:43]} 26. Rxf4 {[%clk 0:00:59]}  exf4 {[%clk 0:01:44]} 27. Nc4 {[%clk 0:00:51]}  fxg5 {[%clk 0:01:41]} 28. h4 {[%clk 0:00:45]}  Rb4 {[%clk 0:01:30]} 29. b3 {[%clk 0:00:44]}  gxh4 {[%clk 0:01:24]} 30. Qg4 {[%clk 0:00:15]}  a4 {[%clk 0:01:17]} 31. Qxf4 {[%clk 0:00:15]}  axb3 {[%clk 0:01:17]} 32. axb3 {[%clk 0:00:16]}  Rxb3 {[%clk 0:01:15]} 33. Rg2 {[%clk 0:00:16]}  Rg3 {[%clk 0:01:06]} 34. Rxg3 {[%clk 0:00:15]}  hxg3 {[%clk 0:01:07]} 35. Kg2 {[%clk 0:00:15]}  Rb4 {[%clk 0:01:06]} 36. Nd2 {[%clk 0:00:14]}  Rd4 {[%clk 0:00:57]} 37. Kf3 {[%clk 0:00:11]}  Qe5 {[%clk 0:00:53]} 38. Qg5 {[%clk 0:00:08]}  Qf6 {[%clk 0:00:43]} 39. Qf4 {[%clk 0:00:05]}  Rd3+ {[%clk 0:00:41]} 40. Ke2 {[%clk 0:00:05]}  g2 {[%clk 0:00:37]} 41. Qg4 {[%clk 0:00:00]}  Qc3 {[%clk 0:00:29]} 0-1


[Site "https://www.chess.com"]

[Event "Titled Tuesday Blitz August 1 Early 2023"]
[White "Gireman, Ja"]
[Black "carokannlover213"]
[WhiteFideId "5043794"]
[WhiteElo "2581"]
[BlackElo "2743"]
[Result "1-0"]
[Round "6"]
[TimeControl "180+1"]
[Date "2023.08.01"]
[WhiteClock "0:00:31"]
[BlackClock "0:00:06"]
[Board "49"]

1. d4 {[%clk 0:03:00]}  Nf6 {[%clk 0:03:00]} 2. Nc3 {[%clk 0:03:00]}  d5 {[%clk 0:02:59]} 3. Bf4 {[%clk 0:03:00]}  e6 {[%clk 0:02:58]} 4. e3 {[%clk 0:02:59]}  Bb4 {[%clk 0:02:58]} 5. f3 {[%clk 0:02:56]}  c5 {[%clk 0:02:56]} 6. Ne2 {[%clk 0:02:53]}  cxd4 {[%clk 0:02:30]} 7. exd4 {[%clk 0:02:49]}  Nc6 {[%clk 0:02:29]} 8. a3 {[%clk 0:02:48]}  Bd6 {[%clk 0:02:29]} 9. Qd2 {[%clk 0:02:28]}  O-O {[%clk 0:02:23]} 10. g4 {[%clk 0:02:24]}  Rb8 {[%clk 0:02:19]} 11. g5 {[%clk 0:02:15]}  Bxf4 {[%clk 0:02:01]} 12. Nxf4 {[%clk 0:02:08]}  Ne8 {[%clk 0:01:55]} 13. h4 {[%clk 0:02:07]}  Qb6 {[%clk 0:01:54]} 14. O-O-O {[%clk 0:02:04]}  Nd6 {[%clk 0:01:54]} 15. h5 {[%clk 0:01:52]}  Qa5 {[%clk 0:01:52]} 16. g6 {[%clk 0:01:50]}  b5 {[%clk 0:01:41]} 17. gxh7+ {[%clk 0:01:48]}  Kh8 {[%clk 0:01:41]} 18. Bd3 {[%clk 0:01:29]}  b4 {[%clk 0:01:35]} 19. h6 {[%clk 0:01:29]}  g6 {[%clk 0:01:21]} 20. Qg2 {[%clk 0:01:28]}  bxc3 {[%clk 0:00:47]} 21. Qxg6 {[%clk 0:01:06]}  fxg6 {[%clk 0:00:19]} 22. Nxg6+ {[%clk 0:01:06]}  Kxh7 {[%clk 0:00:20]} 23. Nxf8+ {[%clk 0:01:05]}  Kh8 {[%clk 0:00:15]} 24. Ng6+ {[%clk 0:00:50]}  Kh7 {[%clk 0:00:15]} 25. Rdg1 {[%clk 0:00:45]}  cxb2+ {[%clk 0:00:07]} 26. Kb1 {[%clk 0:00:45]}  Qxa3 {[%clk 0:00:07]} 27. Ne7+ {[%clk 0:00:31]}  Ne4 {[%clk 0:00:05]} 28. Rg7+ {[%clk 0:00:30]}  Kh8 {[%clk 0:00:06]} 29. Ng6# {[%clk 0:00:31]} 1-0


[Site "https://www.chess.com"]

[Event "Titled Tuesday Blitz August 1 Early 2023"]
[White "feuervogel1000000"]
[Black "Ardelean, George-Catalin"]
[BlackFideId "1207091"]
[WhiteElo "2524"]
[BlackElo "2712"]
[Result "0-1"]
[Round "6"]
[TimeControl "180+1"]
[Date "2023.08.01"]
[WhiteClock "0:00:44"]
[BlackClock "0:00:31"]
[Board "55"]

1. d4 {[%clk 0:03:00]}  d5 {[%clk 0:02:59]} 2. c4 {[%clk 0:03:00]}  e6 {[%clk 0:02:59]} 3. Nf3 {[%clk 0:02:59]}  a6 {[%clk 0:02:58]} 4. g3 {[%clk 0:02:59]}  dxc4 {[%clk 0:02:57]} 5. Bg2 {[%clk 0:02:59]}  Nc6 {[%clk 0:02:54]} 6. O-O {[%clk 0:02:59]}  Rb8 {[%clk 0:02:54]} 7. a4 {[%clk 0:02:58]}  Nf6 {[%clk 0:02:48]} 8. Nc3 {[%clk 0:02:51]}  Bb4 {[%clk 0:02:43]} 9. Bg5 {[%clk 0:02:45]}  h6 {[%clk 0:02:39]} 10. Bxf6 {[%clk 0:02:40]}  Qxf6 {[%clk 0:02:40]} 11. e4 {[%clk 0:02:39]}  O-O {[%clk 0:02:37]} 12. d5 {[%clk 0:02:33]}  Bxc3 {[%clk 0:02:33]} 13. bxc3 {[%clk 0:02:33]}  Ne5 {[%clk 0:02:30]} 14. Nxe5 {[%clk 0:02:29]}  Qxe5 {[%clk 0:02:31]} 15. Rc1 {[%clk 0:02:19]}  exd5 {[%clk 0:02:27]} 16. exd5 {[%clk 0:02:15]}  Bf5 {[%clk 0:02:24]} 17. Re1 {[%clk 0:02:13]}  Qd6 {[%clk 0:02:17]} 18. Qd4 {[%clk 0:02:12]}  Bd3 {[%clk 0:02:18]} 19. Be4 {[%clk 0:02:07]}  Bxe4 {[%clk 0:01:57]} 20. Rxe4 {[%clk 0:02:07]}  b5 {[%clk 0:01:58]} 21. axb5 {[%clk 0:02:05]}  axb5 {[%clk 0:01:59]} 22. Rce1 {[%clk 0:02:03]}  Rbd8 {[%clk 0:01:57]} 23. Re7 {[%clk 0:01:54]}  Qxd5 {[%clk 0:01:55]} 24. Qxd5 {[%clk 0:01:52]}  Rxd5 {[%clk 0:01:56]} 25. Rxc7 {[%clk 0:01:53]}  Rd3 {[%clk 0:01:53]} 26. Rb7 {[%clk 0:01:52]}  Rxc3 {[%clk 0:01:52]} 27. Rxb5 {[%clk 0:01:51]}  Rc8 {[%clk 0:01:45]} 28. Kg2 {[%clk 0:01:50]}  Rc7 {[%clk 0:01:38]} 29. h4 {[%clk 0:01:47]}  g6 {[%clk 0:01:31]} 30. Rd5 {[%clk 0:01:39]}  h5 {[%clk 0:01:27]} 31. Rd2 {[%clk 0:01:37]}  Kg7 {[%clk 0:01:26]} 32. Re4 {[%clk 0:01:35]}  Rc1 {[%clk 0:01:24]} 33. Ree2 {[%clk 0:01:32]}  c3 {[%clk 0:01:22]} 34. Rc2 {[%clk 0:01:33]}  Rxc2 {[%clk 0:01:22]} 35. Rxc2 {[%clk 0:01:34]}  Kf6 {[%clk 0:01:22]} 36. Kf3 {[%clk 0:01:34]}  Kf5 {[%clk 0:01:23]} 37. Ke3 {[%clk 0:01:35]}  Kg4 {[%clk 0:01:22]} 38. Kd3 {[%clk 0:01:34]}  Kf3 {[%clk 0:01:22]} 39. Kd4 {[%clk 0:01:29]}  f6 {[%clk 0:00:59]} 40. Kd5 {[%clk 0:01:27]}  g5 {[%clk 0:01:00]} 41. Ke6 {[%clk 0:01:26]}  gxh4 {[%clk 0:00:56]} 42. gxh4 {[%clk 0:01:26]}  Kg4 {[%clk 0:00:56]} 43. Kxf6 {[%clk 0:01:27]}  Kxh4 {[%clk 0:00:57]} 44. f4 {[%clk 0:01:10]}  Kg4 {[%clk 0:00:56]} 45. Ke5 {[%clk 0:01:10]}  h4 {[%clk 0:00:45]} 46. f5 {[%clk 0:01:08]}  Rc5+ {[%clk 0:00:43]} 47. Ke4 {[%clk 0:01:08]}  Rxf5 {[%clk 0:00:41]} 48. Rxc3 {[%clk 0:01:08]}  Rf4+ {[%clk 0:00:41]} 49. Ke5 {[%clk 0:01:06]}  Rf3 {[%clk 0:00:38]} 50. Rc4+ {[%clk 0:01:06]}  Kg3 {[%clk 0:00:39]} 51. Rc8 {[%clk 0:01:03]}  h3 {[%clk 0:00:38]} 52. Rg8+ {[%clk 0:01:03]}  Kf2 {[%clk 0:00:37]} 53. Rh8 {[%clk 0:01:01]}  Kg2 {[%clk 0:00:33]} 54. Ke4 {[%clk 0:01:01]}  Rg3 {[%clk 0:00:31]} 55. Kf4 {[%clk 0:00:44]}  h2 {[%clk 0:00:31]} 0-1


[Site "https://www.chess.com"]

[Event "Titled Tuesday Blitz August 1 Early 2023"]
[White "Pranav, V"]
[Black "Saya, Ethan"]
[WhiteFideId "25060783"]
[BlackFideId "26095181"]
[WhiteElo "3002"]
[BlackElo "2580"]
[Result "1-0"]
[Round "6"]
[TimeControl "180+1"]
[Date "2023.08.01"]
[WhiteClock "0:02:30"]
[BlackClock "0:00:14"]
[Board "56"]

1. e4 {[%clk 0:03:00]}  e6 {[%clk 0:02:59]} 2. d3 {[%clk 0:03:00]}  c5 {[%clk 0:02:53]} 3. Nd2 {[%clk 0:03:01]}  Nc6 {[%clk 0:02:52]} 4. Ngf3 {[%clk 0:02:56]}  g6 {[%clk 0:02:52]} 5. g3 {[%clk 0:02:56]}  Bg7 {[%clk 0:02:52]} 6. Bg2 {[%clk 0:02:57]}  Nge7 {[%clk 0:02:52]} 7. O-O {[%clk 0:02:58]}  d5 {[%clk 0:02:50]} 8. Re1 {[%clk 0:02:57]}  O-O {[%clk 0:02:49]} 9. e5 {[%clk 0:02:58]}  h6 {[%clk 0:02:49]} 10. Nf1 {[%clk 0:02:58]}  b5 {[%clk 0:02:39]} 11. h4 {[%clk 0:02:57]}  Nf5 {[%clk 0:02:25]} 12. N1h2 {[%clk 0:02:55]}  a5 {[%clk 0:02:16]} 13. Ng4 {[%clk 0:02:54]}  a4 {[%clk 0:02:09]} 14. a3 {[%clk 0:02:53]}  b4 {[%clk 0:01:52]} 15. Bd2 {[%clk 0:02:50]}  Qb6 {[%clk 0:01:35]} 16. Qc1 {[%clk 0:02:48]}  Kh7 {[%clk 0:01:31]} 17. Nf6+ {[%clk 0:02:49]}  Bxf6 {[%clk 0:01:30]} 18. exf6 {[%clk 0:02:49]}  Ncd4 {[%clk 0:01:18]} 19. Nxd4 {[%clk 0:02:43]}  cxd4 {[%clk 0:01:15]} 20. g4 {[%clk 0:02:42]}  Nxh4 {[%clk 0:01:14]} 21. Bxh6 {[%clk 0:02:42]}  Nxg2 {[%clk 0:00:59]} 22. Kxg2 {[%clk 0:02:41]}  Rh8 {[%clk 0:00:53]} 23. Bg7 {[%clk 0:02:40]}  Kg8 {[%clk 0:00:51]} 24. Rh1 {[%clk 0:02:40]}  Rh5 {[%clk 0:00:20]} 25. Qh6 {[%clk 0:02:29]}  Rxh6 {[%clk 0:00:16]} 26. Rxh6 {[%clk 0:02:29]}  Qd6 {[%clk 0:00:14]} 27. Rh8# {[%clk 0:02:30]} 1-0


[Site "https://www.chess.com"]

[Event "Titled Tuesday Blitz August 1 Early 2023"]
[White "Ashraf, Artin"]
[Black "Demin, Vladimir"]
[WhiteFideId "22514805"]
[BlackFideId "4167457"]
[WhiteElo "2848"]
[BlackElo "2567"]
[Result "1-0"]
[Round "6"]
[TimeControl "180+1"]
[Date "2023.08.01"]
[WhiteClock "0:00:45"]
[BlackClock "0:01:41"]
[Board "60"]

1. e4 {[%clk 0:02:59]}  e5 {[%clk 0:02:59]} 2. Nf3 {[%clk 0:02:59]}  Nc6 {[%clk 0:03:00]} 3. Bc4 {[%clk 0:02:59]}  Bc5 {[%clk 0:02:59]} 4. d3 {[%clk 0:02:58]}  Nf6 {[%clk 0:02:53]} 5. Bg5 {[%clk 0:02:56]}  h6 {[%clk 0:02:52]} 6. Bh4 {[%clk 0:02:56]}  d6 {[%clk 0:02:52]} 7. c3 {[%clk 0:02:53]}  a6 {[%clk 0:02:50]} 8. Bb3 {[%clk 0:02:50]}  Ba7 {[%clk 0:02:49]} 9. Nbd2 {[%clk 0:02:49]}  Qe7 {[%clk 0:02:26]} 10. O-O {[%clk 0:02:49]}  g5 {[%clk 0:02:26]} 11. Bg3 {[%clk 0:02:48]}  Nh7 {[%clk 0:02:25]} 12. Bd5 {[%clk 0:02:35]}  h5 {[%clk 0:02:24]} 13. h4 {[%clk 0:02:12]}  Bg4 {[%clk 0:02:23]} 14. Qb3 {[%clk 0:01:52]}  Nd8 {[%clk 0:02:16]} 15. d4 {[%clk 0:01:51]}  c6 {[%clk 0:02:11]} 16. dxe5 {[%clk 0:01:50]}  cxd5 {[%clk 0:02:01]} 17. exd6 {[%clk 0:01:49]}  Qf6 {[%clk 0:01:54]} 18. Be5 {[%clk 0:01:41]}  Qg6 {[%clk 0:01:50]} 19. Bxh8 {[%clk 0:01:38]}  gxh4 {[%clk 0:01:50]} 20. exd5 {[%clk 0:01:06]}  Bh3 {[%clk 0:01:45]} 21. Nxh4 {[%clk 0:00:58]}  Qg4 {[%clk 0:01:45]} 22. Rae1+ {[%clk 0:00:53]}  Kf8 {[%clk 0:01:44]} 23. Re4 {[%clk 0:00:54]}  Qg5 {[%clk 0:01:41]} 24. Ndf3 {[%clk 0:00:45]} 1-0


[Site "https://www.chess.com"]

[Event "Titled Tuesday Blitz August 1 Early 2023"]
[White "NovozhilovSemen"]
[Black "Molina, Roberto Junio Brito"]
[BlackFideId "2109450"]
[WhiteElo "2562"]
[BlackElo "2847"]
[Result "0-1"]
[Round "6"]
[TimeControl "180+1"]
[Date "2023.08.01"]
[WhiteClock "0:00:19"]
[BlackClock "0:00:16"]
[Board "61"]

1. d4 {[%clk 0:03:00]}  d5 {[%clk 0:02:55]} 2. c4 {[%clk 0:03:01]}  c6 {[%clk 0:02:54]} 3. cxd5 {[%clk 0:03:01]}  cxd5 {[%clk 0:02:53]} 4. Bg5 {[%clk 0:03:01]}  h6 {[%clk 0:02:49]} 5. Bh4 {[%clk 0:03:01]}  Qb6 {[%clk 0:02:49]} 6. Qd2 {[%clk 0:03:01]}  Nc6 {[%clk 0:02:44]} 7. e3 {[%clk 0:03:01]}  e6 {[%clk 0:02:40]} 8. Nc3 {[%clk 0:03:01]}  Be7 {[%clk 0:02:38]} 9. Bxe7 {[%clk 0:03:01]}  Ngxe7 {[%clk 0:02:39]} 10. Bd3 {[%clk 0:03:02]}  Bd7 {[%clk 0:02:38]} 11. f4 {[%clk 0:03:02]}  g5 {[%clk 0:02:29]} 12. fxg5 {[%clk 0:03:00]}  hxg5 {[%clk 0:02:30]} 13. Nge2 {[%clk 0:02:59]}  O-O-O {[%clk 0:02:26]} 14. O-O-O {[%clk 0:02:58]}  f5 {[%clk 0:02:23]} 15. g3 {[%clk 0:02:57]}  g4 {[%clk 0:02:07]} 16. Nf4 {[%clk 0:02:55]}  Kb8 {[%clk 0:02:07]} 17. Kb1 {[%clk 0:02:54]}  Qa5 {[%clk 0:01:52]} 18. Rc1 {[%clk 0:02:49]}  Rc8 {[%clk 0:01:51]} 19. a3 {[%clk 0:02:44]}  a6 {[%clk 0:01:44]} 20. Qg2 {[%clk 0:02:36]}  Na7 {[%clk 0:01:37]} 21. h3 {[%clk 0:02:33]}  gxh3 {[%clk 0:01:37]} 22. Rxh3 {[%clk 0:02:34]}  Rcg8 {[%clk 0:01:20]} 23. Qh1 {[%clk 0:02:30]}  Qd8 {[%clk 0:01:19]} 24. Qh2 {[%clk 0:02:11]}  Rxh3 {[%clk 0:01:14]} 25. Qxh3 {[%clk 0:02:12]}  Rh8 {[%clk 0:01:14]} 26. Qg2 {[%clk 0:02:13]}  Qg8 {[%clk 0:01:09]} 27. Qc2 {[%clk 0:02:01]}  Qd8 {[%clk 0:01:00]} 28. Na4 {[%clk 0:01:57]}  Bxa4 {[%clk 0:00:50]} 29. Qxa4 {[%clk 0:01:58]}  Qd6 {[%clk 0:00:49]} 30. Qd1 {[%clk 0:01:51]}  Nac8 {[%clk 0:00:44]} 31. Qf3 {[%clk 0:01:47]}  Nb6 {[%clk 0:00:40]} 32. Rh1 {[%clk 0:01:39]}  Rxh1+ {[%clk 0:00:36]} 33. Qxh1 {[%clk 0:01:40]}  Nc6 {[%clk 0:00:35]} 34. Qh6 {[%clk 0:01:37]}  Nd8 {[%clk 0:00:35]} 35. Bxf5 {[%clk 0:01:37]}  Nc4 {[%clk 0:00:35]} 36. Bd3 {[%clk 0:00:58]}  Nxe3 {[%clk 0:00:29]} 37. Ng6 {[%clk 0:00:51]}  Qxg3 {[%clk 0:00:19]} 38. Ne5 {[%clk 0:00:46]}  Ng4 {[%clk 0:00:12]} 39. Qg5 {[%clk 0:00:30]}  Qe1+ {[%clk 0:00:10]} 40. Ka2 {[%clk 0:00:30]}  Nxe5 {[%clk 0:00:10]} 41. Qxd8+ {[%clk 0:00:30]}  Ka7 {[%clk 0:00:10]} 42. dxe5 {[%clk 0:00:31]}  Qxe5 {[%clk 0:00:10]} 43. Qc8 {[%clk 0:00:29]}  Qd4 {[%clk 0:00:09]} 44. Qc3 {[%clk 0:00:28]}  Qe3 {[%clk 0:00:04]} 45. Bc2 {[%clk 0:00:27]}  Qb6 {[%clk 0:00:04]} 46. Qe5 {[%clk 0:00:26]}  Qc6 {[%clk 0:00:03]} 47. Bb3 {[%clk 0:00:26]}  Kb6 {[%clk 0:00:03]} 48. Qe3+ {[%clk 0:00:25]}  Kc7 {[%clk 0:00:04]} 49. Bd1 {[%clk 0:00:24]}  Qd6 {[%clk 0:00:04]} 50. Bg4 {[%clk 0:00:22]}  e5 {[%clk 0:00:05]} 51. Bf3 {[%clk 0:00:22]}  d4 {[%clk 0:00:05]} 52. Qe4 {[%clk 0:00:22]}  b6 {[%clk 0:00:05]} 53. Qb7+ {[%clk 0:00:22]}  Kd8 {[%clk 0:00:06]} 54. Qxa6 {[%clk 0:00:20]}  d3 {[%clk 0:00:06]} 55. Qa8+ {[%clk 0:00:19]}  Ke7 {[%clk 0:00:06]} 56. Qb7+ {[%clk 0:00:19]}  Kf6 {[%clk 0:00:06]} 57. Qc6 {[%clk 0:00:20]}  Qxc6 {[%clk 0:00:06]} 58. Bxc6 {[%clk 0:00:19]}  Kf5 {[%clk 0:00:07]} 59. Kb3 {[%clk 0:00:19]}  Kf4 {[%clk 0:00:06]} 60. Kc3 {[%clk 0:00:19]}  Ke3 {[%clk 0:00:07]} 61. Bb5 {[%clk 0:00:18]}  e4 {[%clk 0:00:07]} 62. b4 {[%clk 0:00:13]}  d2 {[%clk 0:00:07]} 63. Ba4 {[%clk 0:00:13]}  Ke2 {[%clk 0:00:07]} 64. Kd4 {[%clk 0:00:14]}  e3 {[%clk 0:00:07]} 65. Bb3 {[%clk 0:00:11]}  Kf2 {[%clk 0:00:07]} 66. a4 {[%clk 0:00:07]}  e2 {[%clk 0:00:08]} 67. a5 {[%clk 0:00:08]}  bxa5 {[%clk 0:00:07]} 68. bxa5 {[%clk 0:00:09]}  d1=Q+ {[%clk 0:00:07]} 69. Bxd1 {[%clk 0:00:09]}  exd1=Q+ {[%clk 0:00:08]} 70. Kc5 {[%clk 0:00:10]}  Qb3 {[%clk 0:00:08]} 71. a6 {[%clk 0:00:10]}  Qb8 {[%clk 0:00:08]} 72. Kc6 {[%clk 0:00:11]}  Qa7 {[%clk 0:00:09]} 73. Kb5 {[%clk 0:00:11]}  Ke3 {[%clk 0:00:10]} 74. Ka5 {[%clk 0:00:12]}  Kd4 {[%clk 0:00:10]} 75. Kb5 {[%clk 0:00:13]}  Ke5 {[%clk 0:00:11]} 76. Ka5 {[%clk 0:00:14]}  Ke6 {[%clk 0:00:12]} 77. Kb5 {[%clk 0:00:15]}  Ke7 {[%clk 0:00:13]} 78. Ka5 {[%clk 0:00:15]}  Kd8 {[%clk 0:00:14]} 79. Kb5 {[%clk 0:00:16]}  Kc8 {[%clk 0:00:15]} 80. Ka5 {[%clk 0:00:17]}  Kb8 {[%clk 0:00:15]} 81. Kb5 {[%clk 0:00:18]}  Ka8 {[%clk 0:00:16]} 82. Ka5 {[%clk 0:00:19]} 0-1


[Site "https://www.chess.com"]

[Event "Titled Tuesday Blitz August 1 Early 2023"]
[White "Timofeev, Artyom"]
[Black "To, Nhat Minh"]
[WhiteFideId "4140419"]
[BlackFideId "729019"]
[WhiteElo "2847"]
[BlackElo "2560"]
[Result "1-0"]
[Round "6"]
[TimeControl "180+1"]
[Date "2023.08.01"]
[WhiteClock "0:00:30"]
[BlackClock "0:00:00"]
[Board "62"]

1. c4 {[%clk 0:03:00]}  e5 {[%clk 0:02:57]} 2. e3 {[%clk 0:02:59]}  Nf6 {[%clk 0:02:57]} 3. Nc3 {[%clk 0:02:59]}  Bb4 {[%clk 0:02:56]} 4. Nge2 {[%clk 0:02:58]}  O-O {[%clk 0:02:55]} 5. a3 {[%clk 0:02:58]}  Bxc3 {[%clk 0:02:55]} 6. Nxc3 {[%clk 0:02:58]}  d5 {[%clk 0:02:56]} 7. cxd5 {[%clk 0:02:58]}  Nxd5 {[%clk 0:02:57]} 8. Qc2 {[%clk 0:02:58]}  Nc6 {[%clk 0:02:56]} 9. Be2 {[%clk 0:02:57]}  Be6 {[%clk 0:02:51]} 10. O-O {[%clk 0:02:57]}  h6 {[%clk 0:02:28]} 11. d3 {[%clk 0:02:56]}  Qe7 {[%clk 0:02:19]} 12. b4 {[%clk 0:02:53]}  a6 {[%clk 0:02:15]} 13. Bb2 {[%clk 0:02:53]}  Rad8 {[%clk 0:02:15]} 14. Ne4 {[%clk 0:02:52]}  Bc8 {[%clk 0:02:04]} 15. Nc5 {[%clk 0:02:51]}  Na7 {[%clk 0:02:03]} 16. Bf3 {[%clk 0:02:47]}  c6 {[%clk 0:02:00]} 17. d4 {[%clk 0:02:44]}  exd4 {[%clk 0:01:58]} 18. Bxd4 {[%clk 0:02:44]}  Nb5 {[%clk 0:01:56]} 19. Bb2 {[%clk 0:02:44]}  Ndc7 {[%clk 0:01:43]} 20. Be2 {[%clk 0:02:35]}  Ne6 {[%clk 0:01:39]} 21. Ne4 {[%clk 0:02:21]}  Ng5 {[%clk 0:01:34]} 22. Ng3 {[%clk 0:02:20]}  Rfe8 {[%clk 0:01:22]} 23. Rfd1 {[%clk 0:02:17]}  Be6 {[%clk 0:01:14]} 24. a4 {[%clk 0:01:59]}  Nc7 {[%clk 0:01:08]} 25. Qc3 {[%clk 0:01:59]}  f6 {[%clk 0:01:05]} 26. e4 {[%clk 0:01:59]}  Rxd1+ {[%clk 0:00:54]} 27. Bxd1 {[%clk 0:01:54]}  Rd8 {[%clk 0:00:55]} 28. Bc2 {[%clk 0:01:54]}  Nf7 {[%clk 0:00:45]} 29. f4 {[%clk 0:01:49]}  Nd6 {[%clk 0:00:44]} 30. Bd3 {[%clk 0:01:48]}  Qd7 {[%clk 0:00:40]} 31. Bf1 {[%clk 0:01:43]}  Qe7 {[%clk 0:00:30]} 32. Re1 {[%clk 0:01:38]}  Bf7 {[%clk 0:00:27]} 33. h3 {[%clk 0:01:37]}  Re8 {[%clk 0:00:26]} 34. Kh2 {[%clk 0:01:23]}  Nd5 {[%clk 0:00:24]} 35. Qd2 {[%clk 0:01:23]}  Nb6 {[%clk 0:00:24]} 36. Qc2 {[%clk 0:01:18]}  Nbc4 {[%clk 0:00:10]} 37. Bc3 {[%clk 0:01:14]}  b5 {[%clk 0:00:10]} 38. a5 {[%clk 0:01:14]}  Bg6 {[%clk 0:00:07]} 39. Bd3 {[%clk 0:01:08]}  Bf7 {[%clk 0:00:05]} 40. Qf2 {[%clk 0:01:07]}  Qc7 {[%clk 0:00:05]} 41. e5 {[%clk 0:01:05]}  fxe5 {[%clk 0:00:04]} 42. fxe5 {[%clk 0:01:05]}  Nc8 {[%clk 0:00:03]} 43. Qf5 {[%clk 0:01:00]}  Ne7 {[%clk 0:00:03]} 44. Qh7+ {[%clk 0:00:59]}  Kf8 {[%clk 0:00:04]} 45. Rf1 {[%clk 0:00:57]}  Ng8 {[%clk 0:00:03]} 46. Bg6 {[%clk 0:00:34]}  Re7 {[%clk 0:00:03]} 47. e6 {[%clk 0:00:34]}  Rxe6 {[%clk 0:00:02]} 48. Rxf7+ {[%clk 0:00:30]}  Qxf7 {[%clk 0:00:00]} 49. Bxf7 {[%clk 0:00:30]} 1-0


[Site "https://www.chess.com"]